bitfinex/quotes_ETHUSD_20250523
["timestamp","ask_amount","ask_price","bid_price","bid_amount"]
[1748023438993,16.87100204,2574.2,2574.1,0.03176236]
[1748023439196,16.43662816,2574.2,2574.1,0.03176236]
[1748023439394,15.88662816,2574.2,2574.1,0.03176236]
[1748023439605,4.24662816,2574.2,2574.1,0.03176236]
[1748023440329,3.88470204,2574.2,2574.1,0.03176236]
[1748023440500,4.41961204,2574.2,2574.1,0.03176236]
[1748023440696,6.41403082,2574.2,2574.1,0.03176236]
[1748023441919,4.41961204,2574.2,2574.1,0.03176236]
[1748023442730,5.19921204,2574.2,2574.1,0.03176236]
[1748023442917,5.23819637,2574.2,2574.1,0.03176236]
[1748023443431,7.56719637,2574.2,2574.1,0.03176236]
[1748023443602,7.88887353,2574.2,2574.1,0.03176236]
[1748023443956,10.65288737,2574.2,2574.1,0.03176236]
[1748023444831,22.37322588,2574.2,2574.1,0.03176236]
[1748023445199,5.20211172,2573.2,2573.1,0.05]
[1748023445386,16.07821172,2573.2,2573.1,0.05]
[1748023447151,16.89601172,2573.2,2573.1,0.05]
[1748023447442,18.97422177,2573.2,2573.1,0.05]
[1748023447947,29.30322177,2573.2,2573.1,0.05]
[1748023448801,7.58331379,2573.0,2572.9,1.33333334]
[1748023449006,19.81000297,2573.0,2572.9,1.33333334]
[1748023449208,34.62200297,2573.0,2572.9,1.33333334]
[1748023449446,38.57199606,2573.0,2572.9,0.66666667]
[1748023450220,38.57199606,2573.0,2571.6,14.812]
[1748023450221,0.55,2572.7,2571.6,14.812]
[1748023450438,5.20132257,2572.2,2571.6,14.812]
[1748023450642,16.8873069,2572.2,2571.6,14.812]
[1748023450823,19.34848056,2572.2,2571.6,14.812]
[1748023451434,7.70148056,2572.2,2571.6,14.812]
[1748023451641,4.43772257,2572.2,2571.6,14.812]
[1748023451842,4.43772257,2572.2,2571.8,0.7745]
[1748023452249,4.43772257,2572.2,2572.1,14.865]
[1748023452949,3.88772257,2572.2,2572.1,14.865]
[1748023455955,3.88772257,2572.2,2572.1,14.869]
[1748023457356,0.55,2572.6,2572.1,14.869]
[1748023457357,3.88712796,2572.6,2572.3,0.7516]
[1748023457529,3.88726696,2572.6,2572.3,0.7516]
[1748023457735,3.88732074,2572.5,2572.3,0.7516]
[1748023458055,3.88727568,2572.5,2572.3,0.7516]
[1748023458233,3.88727568,2572.5,2572.4,0.87516]
[1748023458568,3.88727568,2572.5,2572.4,1.64286]
[1748023459057,3.88521705,2573.9,2572.5,0.7677]
[1748023459282,3.8856077,2573.6,2572.8,0.7677]
[1748023459567,3.88630644,2573.2,2572.8,0.7677]
[1748023459857,3.88630644,2573.2,2573.0,0.8223]
[1748023459858,3.88636477,2573.1,2573.0,0.8223]
[1748023460052,3.88636477,2573.1,2573.0,8.8223]
[1748023460255,3.88636477,2573.1,2573.0,23.6413]
[1748023462132,3.88636477,2573.1,2573.0,8.8223]
[1748023462473,3.88636477,2573.1,2573.0,23.6403]
[1748023462766,3.88636477,2573.1,2573.0,24.5924177]
[1748023465668,3.88636477,2573.1,2573.0,24.5914177]
[1748023466131,3.88621808,2573.2,2573.1,8.0]
[1748023466132,3.88629336,2573.2,2573.1,8.0]
[1748023470391,3.88636275,2573.1,2573.0,8.8223]
[1748023470586,3.88636275,2573.1,2573.0,23.6393]
[1748023472322,3.88696699,2572.7,2572.6,16.777]
[1748023472453,3.88696699,2572.7,2572.6,31.593]
[1748023479103,3.88696699,2572.7,2572.6,16.777]
[1748023479273,3.88696699,2572.7,2572.6,31.63]
[1748023479922,3.88696699,2572.7,2572.6,16.777]
[1748023480137,3.88696699,2572.7,2572.6,31.631]
[1748023480306,5.82241466,2572.7,2572.6,31.631]
[1748023482207,4.65636699,2572.7,2572.6,31.631]
[1748023482736,3.88696699,2572.7,2572.6,31.631]
[1748023483038,3.8868937,2572.8,2572.7,8.0]
[1748023483240,3.88666485,2572.9,2572.8,0.8153]
[1748023483445,3.88666485,2572.9,2572.8,8.8153]
[1748023487804,3.88666485,2572.9,2572.8,9.18688278]
[1748023491727,3.88666485,2572.9,2572.8,27.68788278]
[1748023494735,3.88666485,2572.9,2572.8,1.18688278]
[1748023494959,3.88666485,2572.9,2572.8,16.03988278]
[1748023495558,0.7596,2573.6,2572.8,16.03988278]
[1748023495559,3.88615206,2573.3,2572.8,16.03988278]
[1748023495882,4.68841188,2573.9,2573.0,4.64980051]
[1748023496162,3.88521188,2573.9,2573.2,8.0]
[1748023496334,3.88581225,2573.5,2573.4,0.7855]
[1748023496734,3.88556369,2573.7,2573.4,8.7855]
[1748023496930,3.88556369,2573.7,2573.6,8.0]
[1748023497145,3.88556369,2573.7,2573.6,24.774]
[1748023497755,3.88510093,2574.0,2573.7,0.7855]
[1748023497956,3.88510093,2574.0,2573.8,14.851]
[1748023498430,3.88515482,2573.9,2573.8,22.851]
[1748023498628,0.8302,2574.5,2573.9,8.0]
[1748023498968,3.88444554,2574.4,2574.1,8.0]
[1748023499168,1.95735589,2574.6,2574.1,8.0]
[1748023499169,1.95735589,2574.6,2574.2,0.7855]
[1748023499377,3.8842546,2574.5,2574.4,8.0]
[1748023500178,3.88416731,2574.6,2574.4,8.0]
[1748023500470,3.88416731,2574.6,2574.5,10.2851]
[1748023500675,3.88416731,2574.6,2574.5,8.0]
[1748023504662,3.88416731,2574.6,2574.5,8.7523]
[1748023505668,3.88416731,2574.6,2574.5,34.456]
[1748023507453,0.05,2574.9,2574.6,8.0]
[1748023507669,0.05,2574.9,2574.8,8.0]
[1748023507870,0.05,2574.9,2574.8,12.70519679]
[1748023508269,0.05,2575.9,2575.1,0.7957]
[1748023508479,0.05,2575.9,2575.3,8.0]
[1748023508480,3.88274329,2575.5,2575.3,8.0]
[1748023508676,3.8828117,2575.5,2575.3,8.0]
[1748023509006,3.88289197,2575.4,2575.3,8.0]
[1748023511927,3.88314924,2575.3,2575.1,0.7957]
[1748023512139,3.88266045,2575.6,2575.4,8.7548]
[1748023512281,3.88229221,2575.8,2575.4,8.7548]
[1748023512613,3.88250984,2575.7,2575.5,0.03882157]
[1748023512800,3.88250984,2575.7,2575.4,8.7548]
[1748023513002,3.88229221,2575.8,2575.4,8.7548]
[1748023513180,0.05,2575.9,2575.4,8.0]
[1748023513376,3.88229803,2575.8,2575.5,0.7548]
[1748023513580,0.05,2575.9,2575.5,0.7548]
[1748023513794,3.88241214,2575.8,2575.6,0.87548]
[1748023513976,3.88241214,2575.8,2575.7,16.76]
[1748023514939,0.05,2576.9,2576.1,8.0]
[1748023515082,0.05,2576.9,2576.3,8.0]
[1748023515286,3.88091122,2576.8,2576.4,1.8285677]
[1748023515485,3.88111108,2576.6,2576.4,1.8285677]
[1748023515716,3.88111108,2576.6,2576.5,0.7548]
[1748023516342,0.05,2576.9,2576.5,0.7548]
[1748023516638,3.88078236,2576.8,2576.5,0.7548]
[1748023516782,3.88078236,2576.8,2576.6,0.25833677]
[1748023517122,3.88078236,2576.8,2576.7,31.563]
[1748023517627,3.93063176,2576.9,2576.8,8.0]
[1748023517835,3.93063176,2576.9,2576.8,19.637]
[1748023519115,3.93063176,2576.9,2576.8,22.801]
[1748023520518,3.93063176,2576.9,2576.8,34.436]
[1748023520722,4.78757521,2576.9,2576.8,8.0]
[1748023520929,3.88078236,2576.8,2576.7,24.758]
[1748023521235,3.88078236,2576.8,2576.7,39.559]
[1748023521624,0.05,2576.9,2576.8,8.0]
[1748023521825,0.05,2576.9,2576.8,8.7836]
[1748023522652,3.93063176,2576.9,2576.8,22.799]
[1748023523800,3.93063176,2576.9,2576.8,34.432]
[1748023527449,3.93063176,2576.9,2576.8,8.0]
[1748023527652,3.93063176,2576.9,2576.8,34.428]
[1748023532752,0.05,2576.9,2576.8,34.428]
[1748023532958,0.05,2576.9,2576.8,35.2058]
[1748023534694,0.05,2576.9,2576.8,35.52420079]
[1748023538888,0.05,2576.9,2576.8,35.1558]
[1748023540813,1.48406667,2577.9,2577.1,4.64556225]
[1748023540985,1.48406667,2577.9,2577.4,8.0]
[1748023541321,3.87952694,2577.7,2577.6,8.0]
[1748023541488,3.87952694,2577.7,2577.6,24.746]
[1748023542316,3.87952694,2577.7,2577.6,25.11564342]
[1748023543908,3.87952694,2577.7,2577.6,25.57784699]
[1748023545449,0.71666667,2577.9,2577.6,25.57784699]
[1748023545731,0.71666667,2577.9,2577.6,28.59263846]
[1748023545732,3.87935463,2577.8,2577.6,28.59263846]
[1748023545886,4.59585644,2577.9,2577.6,28.59263846]
[1748023546086,0.71666667,2577.9,2577.6,28.59263846]
[1748023546287,0.71666667,2577.9,2577.7,26.483]
[1748023546288,3.87940599,2577.8,2577.7,26.483]
[1748023546515,3.87940599,2577.8,2577.7,35.31484699]
[1748023547511,3.87940599,2577.8,2577.7,35.77940322]
[1748023549033,4.59587129,2577.9,2577.8,8.0]
[1748023549436,0.71666667,2577.9,2577.8,8.0]
[1748023549728,0.71666667,2577.9,2577.8,11.8792769]
[1748023549926,0.05,2577.9,2577.8,12.6677769]
[1748023550229,0.05,2577.9,2577.8,15.45726837]
[1748023550428,4.75129899,2578.9,2578.5,8.0]
[1748023550633,0.05,2578.9,2578.7,8.0]
[1748023551131,3.92768646,2578.9,2578.7,8.0]
[1748023551303,0.05,2578.9,2578.7,8.0]
[1748023551509,0.05,2578.9,2578.7,8.46455623]
[1748023552436,0.05,2578.9,2578.8,1.12964342]
[1748023553336,0.05,2578.9,2578.8,34.84664342]
[1748023553699,0.05,2578.9,2578.8,8.36964342]
[1748023553700,3.92762224,2578.9,2578.8,8.36964342]
[1748023554108,3.92762224,2578.9,2578.8,23.22164342]
[1748023554109,4.71062224,2578.9,2578.8,23.22164342]
[1748023554306,3.92762224,2578.9,2578.8,23.22164342]
[1748023555554,3.92762224,2578.9,2578.8,8.36964342]
[1748023555719,3.92762224,2578.9,2578.8,34.84264342]
[1748023555898,3.92762224,2578.9,2578.8,34.473]
[1748023557145,3.92762224,2578.9,2578.8,34.473]
[1748023557736,3.92762224,2578.9,2578.8,22.849]
[1748023557941,0.8323,2578.7,2578.0,1.28180357]
[1748023558239,4.79089564,2578.9,2578.0,17.19820357]
[1748023558240,3.87882549,2578.1,2578.0,17.19820357]
[1748023558439,3.87882549,2578.1,2578.0,32.04720357]
[1748023558964,3.87882549,2578.1,2578.0,40.04720357]
[1748023559644,3.87882549,2578.1,2578.0,39.585]
[1748023560360,4.64936909,2578.1,2578.0,31.585]
[1748023561261,3.87882549,2578.1,2578.0,31.585]
[1748023563459,3.87882549,2578.1,2578.0,43.208]
[1748023563660,3.8784508,2578.4,2578.1,8.0]
[1748023563833,3.87866235,2578.3,2578.1,8.0]
[1748023564171,0.05,2578.9,2578.1,8.0]
[1748023564172,3.8783208,2578.5,2578.1,8.0]
[1748023564572,3.87815807,2578.6,2578.1,11.87873211]
[1748023564879,3.8780692,2578.7,2578.3,8.0]
[1748023565078,3.87781975,2578.8,2578.3,8.0]
[1748023565079,3.87780194,2578.8,2578.3,3.87852433]
[1748023565370,3.87781478,2578.8,2578.3,3.87845386]
[1748023565573,3.87781478,2578.8,2578.4,1.65304159]
[1748023565871,3.87792298,2578.7,2578.6,8.0]
[1748023566479,3.87781006,2578.8,2578.6,8.0]
[1748023566793,3.87792298,2578.7,2578.6,8.0]
[1748023567249,3.92764564,2578.9,2578.6,8.0]
[1748023567581,3.8777726,2578.8,2578.7,1.05100611]
[1748023568959,0.05,2578.9,2578.7,1.05100611]
[1748023569159,3.8777726,2578.8,2578.7,1.05100611]
[1748023569355,0.05,2578.9,2578.7,1.05100611]
[1748023569762,3.8777726,2578.8,2578.7,1.05100611]
[1748023570764,3.92764847,2578.9,2578.2,1.23550357]
[1748023570765,3.87822552,2578.5,2578.2,1.23550357]
[1748023570961,3.87809619,2578.6,2578.4,8.0]
[1748023571162,3.87822377,2578.5,2578.4,8.0]
[1748023571361,3.87811671,2578.6,2578.4,8.0]
[1748023571683,0.05,2578.9,2578.4,8.0]
[1748023571990,3.87818056,2578.6,2578.5,8.0]
[1748023572775,0.05,2578.9,2578.5,8.0]
[1748023572974,3.87784746,2578.8,2578.5,8.0]
[1748023574088,3.8777834,2578.8,2578.5,8.0]
[1748023574293,3.8779463,2578.7,2578.5,8.0]
[1748023574596,3.87784547,2578.8,2578.6,0.8]
[1748023575000,3.92770695,2578.9,2578.6,0.8]
[1748023575206,0.05,2578.9,2578.8,8.0]
[1748023575398,0.05,2578.9,2578.8,23.6911]
[1748023576372,0.05,2578.9,2578.8,27.5688726]
[1748023576576,1.1535345,2579.4,2579.2,8.0]
[1748023576780,1.1535345,2579.4,2579.3,51.236]
[1748023577163,1.1535345,2579.4,2579.3,52.0048]
[1748023577798,5.03040509,2579.4,2579.3,52.0048]
[1748023578005,5.03040509,2579.4,2579.3,51.236]
[1748023578298,5.03040509,2579.4,2579.3,51.234]
[1748023578518,5.03040509,2579.4,2579.3,24.735]
[1748023578803,5.03040509,2579.4,2579.3,39.613]
[1748023580469,5.03040509,2579.4,2579.3,24.735]
[1748023580669,5.03040509,2579.4,2579.3,31.613]
[1748023580670,5.81460509,2579.4,2579.3,31.613]
[1748023580889,6.78373784,2579.4,2579.3,31.613]
[1748023588416,7.33373784,2579.4,2579.3,31.613]
[1748023589124,3.87822377,2578.5,2578.4,24.733]
[1748023589299,3.87822377,2578.5,2578.4,16.733]
[1748023589492,3.87822377,2578.5,2578.4,24.733]
[1748023589792,3.87822377,2578.5,2578.4,16.733]
[1748023590897,3.87897595,2578.0,2577.9,0.7772]
[1748023591102,3.87862884,2578.3,2577.7,0.7588]
[1748023591282,3.87897595,2578.0,2577.9,8.0]
[1748023591487,3.87897595,2578.0,2577.9,22.879]
[1748023593607,3.87887924,2578.1,2577.9,22.879]
[1748023594309,3.87897595,2578.0,2577.9,22.879]
[1748023594687,3.87897595,2578.0,2577.9,34.501]
[1748023595524,3.8792769,2577.8,2577.7,0.7588]
[1748023595835,3.8792769,2577.8,2577.7,9.63468]
[1748023596052,3.8792769,2577.8,2577.7,36.08368]
[1748023596829,3.8792769,2577.8,2577.7,36.45352445]
[1748023597043,3.8792769,2577.8,2577.7,10.00452445]
[1748023597325,3.8792769,2577.8,2577.7,36.45452445]
[1748023597728,3.8792769,2577.8,2577.7,10.00452445]
[1748023597925,3.8792769,2577.8,2577.7,36.45452445]
[1748023599042,3.8792769,2577.8,2577.7,10.00452445]
[1748023599226,3.8792769,2577.8,2577.7,36.45452445]
[1748023599542,3.8792769,2577.8,2577.7,36.45552445]
[1748023599930,3.8792769,2577.8,2577.7,24.83352445]
[1748023600125,3.8792769,2577.8,2577.7,15.19884445]
[1748023600634,3.8792769,2577.8,2577.7,22.829]
[1748023604155,0.805,2579.2,2577.8,8.764]
[1748023604315,0.805,2579.2,2578.3,0.764]
[1748023604646,0.805,2579.2,2578.5,8.0]
[1748023604647,1.48547535,2579.2,2578.5,8.0]
[1748023604799,3.87763219,2578.9,2578.5,8.0]
[1748023605006,3.87732154,2579.1,2578.5,8.0]
[1748023605261,3.87807299,2578.7,2578.5,8.0]
[1748023605415,3.87807337,2578.6,2578.5,8.0]
[1748023605737,3.87799045,2578.7,2578.5,34.454]
[1748023606040,3.87785244,2578.8,2578.5,34.454]
[1748023606402,3.8773904,2579.1,2578.7,8.0]
[1748023606635,3.8773904,2579.1,2578.8,0.7911]
[1748023606807,3.87747516,2579.0,2578.8,0.7911]
[1748023607003,3.87762224,2578.9,2578.8,1.67021]
[1748023607706,3.87792298,2578.7,2578.6,8.0]
[1748023607903,3.87792298,2578.7,2578.6,22.829]
[1748023608413,3.87822377,2578.5,2578.4,16.738]
[1748023608617,3.87822377,2578.5,2578.4,43.19]
[1748023609061,4.65469654,2579.0,2578.4,43.19]
[1748023609363,3.87776493,2578.9,2578.5,8.0]
[1748023609559,3.87769825,2578.9,2578.5,8.0]
[1748023609704,3.87766532,2578.9,2578.5,8.0]
[1748023609903,3.8777873,2578.8,2578.5,8.0]
[1748023610141,3.8777873,2578.8,2578.4,44.0051]
[1748023610302,3.87752466,2579.0,2578.5,11.87818508]
[1748023610501,0.7821,2579.3,2578.6,3.87800408]
[1748023610502,3.87739445,2579.1,2578.6,3.87800408]
[1748023610740,3.87739445,2579.1,2578.6,4.24798822]
[1748023611140,3.87775455,2578.9,2578.7,0.42479882]
[1748023611356,5.0304092,2579.4,2578.8,26.449]
[1748023611584,3.87762224,2578.9,2578.8,26.449]
[1748023612873,3.87817283,2578.6,2578.5,8.0]
[1748023613072,3.87817283,2578.6,2578.5,34.449]
[1748023613438,3.87817283,2578.6,2578.5,26.449]
[1748023613638,3.87817283,2578.6,2578.5,14.827]
[1748023619868,3.87817283,2578.6,2578.5,22.827]
[1748023623554,4.67047283,2578.6,2578.5,8.0]
[1748023623885,3.87822377,2578.5,2578.4,16.738]
[1748023624093,3.87822377,2578.5,2578.4,31.565]
[1748023625258,3.87822377,2578.5,2578.4,16.738]
[1748023625548,5.22052377,2578.5,2578.4,16.738]
[1748023625805,6.51818598,2578.5,2578.4,31.654]
[1748023626183,6.51818598,2578.5,2578.4,16.738]
[1748023626408,6.51818598,2578.5,2578.4,31.654]
[1748023627100,6.51818598,2578.5,2578.4,16.738]
[1748023627260,6.51818598,2578.5,2578.4,31.655]
[1748023629426,6.51818598,2578.5,2578.4,16.738]
[1748023629968,4.4285246,2578.3,2578.2,14.918]
[1748023630210,6.55100608,2578.3,2578.2,14.918]
[1748023630921,6.55100608,2578.3,2577.6,16.738]
[1748023630922,0.55,2578.1,2577.6,16.738]
[1748023631126,5.20362739,2577.7,2577.6,14.918]
[1748023631432,4.65438004,2577.2,2577.1,14.968]
[1748023631767,3.88018004,2577.2,2577.1,14.968]
[1748023631966,3.88005577,2577.3,2577.1,14.968]
[1748023631967,3.88005577,2577.3,2577.1,16.51093175]
[1748023632174,3.8795779,2577.6,2577.1,16.51093175]
[1748023632403,3.88017075,2577.3,2577.2,8.0]
[1748023633374,3.87989302,2577.4,2577.2,19.625]
[1748023633569,3.87969395,2577.6,2577.3,1.16111595]
[1748023633808,3.87987894,2577.4,2577.3,1.16111595]
[1748023634193,3.87962624,2577.6,2577.3,1.16111595]
[1748023634398,3.87966062,2577.6,2577.4,2.34693175]
[1748023634714,3.87954066,2577.7,2577.4,2.34693175]
[1748023634909,0.7742,2578.2,2577.4,2.34693175]
[1748023634910,3.87972841,2577.5,2577.4,2.34693175]
[1748023635114,3.87987894,2577.4,2577.1,0.854]
[1748023635326,3.88018004,2577.2,2577.1,0.854]
[1748023635615,3.880004,2577.4,2577.2,8.0]
[1748023635813,4.65339082,2577.9,2577.2,8.0]
[1748023635814,3.88002948,2577.3,2577.2,8.0]
[1748023636308,3.87996329,2577.4,2577.2,8.0]
[1748023636514,3.87962217,2577.6,2577.4,8.0]
[1748023637093,3.87979532,2577.5,2577.4,8.0]
[1748023638222,3.88018004,2577.2,2577.1,22.971]
[1748023638529,3.88018004,2577.2,2577.1,14.971]
[1748023638702,3.88018004,2577.2,2577.1,22.971]
[1748023639485,3.88018004,2577.2,2577.1,14.971]
[1748023639688,3.88018004,2577.2,2577.1,22.971]
[1748023641026,3.88018004,2577.2,2577.1,14.971]
[1748023642704,4.64718004,2577.2,2577.1,14.971]
[1748023643034,5.49990362,2577.2,2577.1,14.971]
[1748023645442,6.04990362,2577.2,2577.1,14.971]
[1748023648613,6.04990362,2577.2,2577.1,0.05]
[1748023648820,6.08888795,2577.2,2577.1,0.05]
[1748023649333,8.37490362,2577.2,2577.1,0.05]
[1748023650517,8.57688256,2577.2,2577.1,0.05]
[1748023651066,16.57688256,2577.2,2577.1,0.05]
[1748023651221,3.8816862,2576.2,2576.1,0.05]
[1748023651413,3.8816862,2576.2,2576.1,14.977]
[1748023651607,4.71300837,2576.2,2576.1,14.977]
[1748023652266,6.02530837,2576.2,2576.1,14.977]
[1748023652754,5.47530837,2576.2,2576.1,14.977]
[1748023653049,4.6439862,2576.2,2576.1,14.977]
[1748023653348,3.97731953,2576.2,2576.1,14.977]
[1748023653551,4.52731953,2576.2,2576.1,0.05]
[1748023653763,4.52731953,2576.2,2576.1,14.979]
[1748023653955,5.75634352,2576.2,2576.1,0.05]
[1748023656762,5.20634352,2576.2,2576.1,0.05]
[1748023656911,15.61031953,2576.2,2576.1,0.05]
[1748023657107,4.52731953,2576.2,2576.1,0.05]
[1748023658346,16.16031953,2576.2,2576.1,0.05]
[1748023659231,24.16031953,2576.2,2576.1,0.05]
[1748023659427,27.77476022,2576.2,2576.1,0.05]
[1748023660417,30.09976022,2576.2,2576.1,0.05]
[1748023662774,5.25654275,2575.3,2575.2,31.667]
[1748023663071,16.89254275,2575.3,2575.2,31.667]
[1748023663270,18.9700884,2575.3,2575.2,14.915]
[1748023664041,4.43304275,2575.3,2575.2,14.915]
[1748023665067,4.43319353,2575.2,2575.1,0.05]
[1748023665235,4.43319353,2575.2,2575.1,14.967]
[1748023665570,3.88319353,2575.2,2575.1,14.967]
[1748023668679,3.88137213,2576.5,2575.1,16.53036667]
[1748023668831,3.88137213,2576.5,2575.3,3.88303777]
[1748023669032,4.66309165,2576.6,2575.6,0.7596]
[1748023669285,3.88106856,2576.7,2575.8,8.0]
[1748023669486,3.88063176,2576.9,2576.1,0.789]
[1748023669782,1.92479452,2577.1,2576.3,8.789]
[1748023669981,3.88123423,2576.5,2576.4,29.96036667]
[1748023670141,3.88123423,2576.5,2576.4,37.96036667]
[1748023670782,3.88115645,2576.6,2576.4,37.96036667]
[1748023671074,3.88123423,2576.5,2576.4,37.96036667]
[1748023679306,3.88116141,2576.6,2576.4,37.96036667]
[1748023679616,3.88123423,2576.5,2576.4,37.96036667]
[1748023682108,0.7742,2577.4,2576.5,8.0]
[1748023682424,3.88086513,2576.8,2576.6,1.17948901]
[1748023682602,3.88002948,2577.3,2576.8,8.0]
[1748023682947,3.8801874,2577.2,2576.9,0.8318]
[1748023683215,3.88033443,2577.1,2576.9,0.8318]
[1748023683514,3.88033443,2577.1,2576.9,2.39516667]
[1748023684492,3.88029072,2577.2,2576.9,2.39516667]
[1748023684694,3.88041243,2577.1,2576.9,2.39516667]
[1748023685083,3.88048117,2577.0,2576.9,0.8318]
[1748023685282,3.88048117,2577.0,2576.9,35.3758]
[1748023688446,10.19,2577.7,2576.9,35.3758]
[1748023688634,3.8804142,2577.1,2577.0,8.0]
[1748023689540,3.88048117,2577.0,2576.9,20.4628]
[1748023689745,3.88048117,2577.0,2576.9,35.4808]
[1748023691554,3.88048117,2577.0,2576.9,8.8318]
[1748023691849,3.88048117,2577.0,2576.9,35.4798]
[1748023692220,3.88044284,2577.1,2576.9,8.8318]
[1748023692420,10.19,2577.7,2577.0,8.03880223]
[1748023692421,14.06945755,2577.7,2577.0,8.03880223]
[1748023692740,3.8803306,2577.1,2577.0,8.0]
[1748023693111,3.88026322,2577.2,2577.0,8.0]
[1748023693334,3.8803306,2577.1,2577.0,8.0]
[1748023693506,3.88048117,2577.0,2576.9,8.8318]
[1748023693712,3.88048117,2577.0,2576.9,23.017]
[1748023700753,3.88048117,2577.0,2576.9,8.0]
[1748023701051,3.88048117,2577.0,2576.9,34.646]
[1748023702269,3.88048117,2577.0,2576.9,8.0]
[1748023702419,3.88048117,2577.0,2576.9,23.016]
[1748023702618,4.70078117,2577.0,2576.9,23.016]
[1748023702865,3.88123423,2576.5,2576.4,18.00361745]
[1748023703063,3.88123423,2576.5,2576.4,52.64961745]
[1748023703420,3.88123423,2576.5,2576.4,44.64961745]
[1748023703620,3.88123423,2576.5,2576.4,52.559466]
[1748023703973,3.88123423,2576.5,2576.4,44.559466]
[1748023704137,3.88123423,2576.5,2576.4,51.776166]
[1748023705347,3.88123423,2576.5,2576.4,51.405]
[1748023706256,3.88111718,2576.6,2576.4,51.405]
[1748023706257,3.88111718,2576.6,2576.5,8.0]
[1748023706658,3.88022362,2577.2,2576.5,8.0]
[1748023706863,3.88103767,2576.7,2576.5,8.0]
[1748023707161,0.7764,2577.3,2576.6,0.7993]
[1748023707162,3.8808726,2576.8,2576.6,0.7993]
[1748023707663,4.67917242,2577.2,2576.6,0.7993]
[1748023707664,0.79895096,2577.2,2576.6,0.7993]
[1748023707850,3.88072416,2576.9,2576.6,0.7993]
[1748023708050,3.88072416,2576.9,2576.7,0.37124883]
[1748023708223,3.88072416,2576.9,2576.8,19.63]
[1748023708424,0.8225,2577.7,2577.0,0.8286]
[1748023708624,3.88020847,2577.2,2577.1,23.017]
[1748023709162,3.88002948,2577.3,2577.2,8.0]
[1748023709339,3.88002948,2577.3,2577.2,19.63]
[1748023710037,3.88002948,2577.3,2577.2,20.00124883]
[1748023710338,3.88002948,2577.3,2577.2,20.62524165]
[1748023712026,3.87987894,2577.4,2577.3,0.8286]
[1748023712325,3.88002948,2577.3,2577.2,0.99524165]
[1748023712525,3.88002948,2577.3,2577.2,35.01724883]
[1748023713265,3.87978919,2577.5,2577.3,8.0]
[1748023713462,3.87978919,2577.5,2577.4,16.746]
[1748023713665,3.87978919,2577.5,2577.4,25.11724883]
[1748023714162,3.87978919,2577.5,2577.4,40.13224883]
[1748023715760,3.87964896,2577.6,2577.5,8.0]
[1748023716434,3.87964896,2577.6,2577.5,8.37124883]
[1748023716765,3.8795779,2577.6,2577.5,9.13674883]
[1748023717060,3.87951079,2577.7,2577.5,9.13674883]
[1748023717561,0.05,2577.9,2577.6,0.7569]
[1748023717747,0.05,2577.9,2577.6,1.12814883]
[1748023717959,0.05,2577.9,2577.7,34.59]
[1748023718449,0.05,2577.9,2577.8,8.0]
[1748023718668,0.05,2577.9,2577.8,8.8288]
[1748023719224,0.05,2577.9,2577.8,9.20004883]
[1748023720234,3.92912642,2577.9,2577.8,9.20004883]
[1748023720665,0.05,2577.9,2577.8,1.20004883]
[1748023720852,0.05,2577.9,2577.8,35.78704883]
[1748023721365,0.05,2577.9,2577.8,9.20004883]
[1748023721577,0.7618,2578.6,2577.9,8.0]
[1748023721578,3.87816643,2578.6,2577.9,8.0]
[1748023721733,3.87818512,2578.6,2578.2,8.0]
[1748023722058,3.87818512,2578.6,2578.1,3.87870417]
[1748023722059,3.87818512,2578.6,2578.4,8.8288]
[1748023722375,3.87818512,2578.6,2578.5,16.743]
[1748023722538,3.87818512,2578.6,2578.5,24.743]
[1748023725648,3.87804894,2578.7,2578.6,8.0]
[1748023725851,3.87804894,2578.7,2578.5,24.743]
[1748023725852,3.87807337,2578.6,2578.5,24.743]
[1748023726062,3.87807337,2578.6,2578.5,25.70481012]
[1748023727068,3.87807337,2578.6,2578.5,24.743]
[1748023727277,3.87807337,2578.6,2578.5,51.324]
[1748023728044,3.92769491,2578.9,2578.6,8.0]
[1748023728474,0.05,2578.9,2578.8,8.0]
[1748023728645,0.05,2578.9,2578.8,0.8288]
[1748023728847,0.05,2578.9,2578.8,2.09947953]
[1748023729081,3.92762224,2578.9,2578.8,2.09947953]
[1748023729281,3.8778801,2578.8,2578.6,8.8328]
[1748023729583,3.8778801,2578.8,2578.7,34.578]
[1748023730084,4.64707337,2578.6,2578.5,16.743]
[1748023730287,4.64707337,2578.6,2578.5,31.698]
[1748023731064,5.21337337,2578.6,2578.5,31.698]
[1748023731461,5.21337337,2578.6,2578.5,16.743]
[1748023731674,7.60734926,2578.6,2578.5,16.743]
[1748023732085,7.05734926,2578.6,2578.5,16.743]
[1748023732663,7.60734926,2578.6,2578.5,16.743]
[1748023733597,4.66337337,2578.6,2578.5,16.743]
[1748023733990,5.21337337,2578.6,2578.5,16.743]
[1748023736702,16.83737337,2578.6,2578.5,16.743]
[1748023737966,5.21337337,2578.6,2578.5,16.743]
[1748023738269,4.66337337,2578.6,2578.5,16.743]
[1748023738891,8.16474926,2578.6,2578.5,16.743]
[1748023739101,8.71474926,2578.6,2578.5,16.743]
[1748023740407,3.87942739,2577.7,2577.6,16.739]
[1748023740608,3.87942739,2577.7,2577.6,39.696]
[1748023743725,3.87935907,2577.8,2577.7,8.0]
[1748023744179,3.87935907,2577.8,2577.6,24.739]
[1748023744180,3.87942739,2577.7,2577.6,24.739]
[1748023744381,3.87942739,2577.7,2577.6,31.696]
[1748023745619,4.66032739,2577.7,2577.6,16.739]
[1748023745909,4.66032739,2577.7,2577.6,31.696]
[1748023749322,3.87942739,2577.7,2577.6,31.696]
[1748023756193,5.46669804,2577.7,2577.6,31.807]
[1748023757814,4.69082739,2577.7,2577.6,31.807]